[Event "Early-Titled-Tuesday-Blitz-September-26-2023"]
[Site "Chess.com"]
[Date "2023.09.26"]
[Round "11"]
[White "CSB7"]
[Black "MITerryble"]
[Result "1-0"]
[WhiteElo "2759"]
[BlackElo "2929"]
[TimeControl "180+1"]
[EndTime "10:05:10 PDT"]
[Termination "CSB7 won by resignation"]

1. e4 {[%clk 0:03:00.9]} 1... e6 {[%clk 0:02:49]} 2. d4 {[%clk 0:03:00.8]} 2...
d5 {[%clk 0:02:49.7]} 3. exd5 {[%clk 0:03:01.7]} 3... exd5 {[%clk 0:02:50.5]} 4.
Nf3 {[%clk 0:03:01.7]} 4... Nc6 {[%clk 0:02:51.1]} 5. c3 {[%clk 0:02:56.6]} 5...
Bd6 {[%clk 0:02:51.4]} 6. Bd3 {[%clk 0:02:55.4]} 6... Bg4 {[%clk 0:02:51.8]} 7.
h3 {[%clk 0:02:52.6]} 7... Bh5 {[%clk 0:02:51.6]} 8. O-O {[%clk 0:02:52.8]} 8...
Nge7 {[%clk 0:02:51.9]} 9. Re1 {[%clk 0:02:52.7]} 9... Qd7 {[%clk 0:02:51.1]}
10. Nbd2 {[%clk 0:02:50.2]} 10... Bg6 {[%clk 0:02:49.2]} 11. Nf1 {[%clk
0:02:44.1]} 11... O-O {[%clk 0:02:46.7]} 12. Bxg6 {[%clk 0:02:23.3]} 12... Nxg6
{[%clk 0:02:42.6]} 13. Bd2 {[%clk 0:02:14.3]} 13... Nce7 {[%clk 0:02:42]} 14.
Qc2 {[%clk 0:02:10.9]} 14... f6 {[%clk 0:02:42.2]} 15. Re2 {[%clk 0:02:10.6]}
15... c6 {[%clk 0:02:42.3]} 16. Rae1 {[%clk 0:02:10.6]} 16... Rae8 {[%clk
0:02:41.9]} 17. Ng3 {[%clk 0:01:54.9]} 17... Bxg3 {[%clk 0:02:39.8]} 18. fxg3
{[%clk 0:01:55.8]} 18... Nc8 {[%clk 0:02:40.2]} 19. h4 {[%clk 0:01:01.3]} 19...
Rxe2 {[%clk 0:02:36.1]} 20. Rxe2 {[%clk 0:01:02.2]} 20... Nge7 {[%clk
0:02:36.4]} 21. Bf4 {[%clk 0:01:00.5]} 21... Nf5 {[%clk 0:02:32.1]} 22. g4
{[%clk 0:00:48.3]} 22... Nfd6 {[%clk 0:02:31.9]} 23. g5 {[%clk 0:00:48.5]} 23...
Ne4 {[%clk 0:02:30.1]} 24. gxf6 {[%clk 0:00:45.9]} 24... gxf6 {[%clk 0:02:31]}
25. Nd2 {[%clk 0:00:43.9]} 25... Ncd6 {[%clk 0:02:26.7]} 26. Bxd6 {[%clk
0:00:39.4]} 26... Nxd6 {[%clk 0:02:27.6]} 27. Qd3 {[%clk 0:00:39.7]} 27... Kh8
{[%clk 0:02:24.1]} 28. Qg3 {[%clk 0:00:37.7]} 28... Nf5 {[%clk 0:02:22.7]} 29.
Qf4 {[%clk 0:00:37.8]} 29... Nd6 {[%clk 0:02:22.1]} 30. Nf3 {[%clk 0:00:32.3]}
30... Ne4 {[%clk 0:02:21]} 31. Ng5 {[%clk 0:00:27.5]} 31... Nxg5 {[%clk
0:01:52.8]} 32. hxg5 {[%clk 0:00:26.9]} 32... f5 {[%clk 0:01:51.2]} 33. g6
{[%clk 0:00:18.4]} 33... Qg7 {[%clk 0:01:38.5]} 34. gxh7 {[%clk 0:00:17.1]}
34... Qf6 {[%clk 0:01:39.2]} 35. Re5 {[%clk 0:00:16.2]} 35... Kxh7 {[%clk
0:01:38]} 36. Re3 {[%clk 0:00:16.4]} 36... Rf7 {[%clk 0:01:37.4]} 37. Rh3+
{[%clk 0:00:15.7]} 37... Kg8 {[%clk 0:01:37.9]} 38. Rg3+ {[%clk 0:00:11.7]}
38... Kh7 {[%clk 0:01:23.7]} 39. Rh3+ {[%clk 0:00:10.7]} 39... Kg7 {[%clk
0:01:23.9]} 40. Qb8 {[%clk 0:00:08.9]} 40... Rf8 {[%clk 0:01:04.1]} 41. Qxb7+
{[%clk 0:00:08.4]} 41... Rf7 {[%clk 0:01:05]} 42. Qb8 {[%clk 0:00:08.9]} 42...
Rf8 {[%clk 0:01:04.7]} 43. Qxa7+ {[%clk 0:00:08.8]} 43... Rf7 {[%clk 0:01:05.6]}
44. Qb8 {[%clk 0:00:09.1]} 44... Rf8 {[%clk 0:01:06.2]} 45. Qg3+ {[%clk
0:00:08.9]} 45... Kf7 {[%clk 0:01:04.3]} 46. Rh7+ {[%clk 0:00:08.5]} 46... Ke6
{[%clk 0:01:04.5]} 47. Qe3+ {[%clk 0:00:08.7]} 47... Kd6 {[%clk 0:01:05.3]} 48.
Rh6 {[%clk 0:00:09.1]} 1-0

[Event "Early-Titled-Tuesday-Blitz-September-26-2023"]
[Site "Chess.com"]
[Date "2023.09.26"]
[Round "11"]
[White "Darius321"]
[Black "Katuducha"]
[Result "1/2-1/2"]
[WhiteElo "2328"]
[BlackElo "2217"]
[TimeControl "180+1"]
[EndTime "10:05:13 PDT"]
[Termination "Game drawn by repetition"]

1. e4 {[%clk 0:03:00.9]} 1... c5 {[%clk 0:02:59.1]} 2. Nf3 {[%clk 0:02:57.5]}
2... d6 {[%clk 0:02:58.4]} 3. Bb5+ {[%clk 0:02:56.7]} 3... Bd7 {[%clk
0:02:57.7]} 4. Bxd7+ {[%clk 0:02:57.3]} 4... Nxd7 {[%clk 0:02:57.4]} 5. O-O
{[%clk 0:02:58.2]} 5... Ngf6 {[%clk 0:02:54.8]} 6. Re1 {[%clk 0:02:59.1]} 6...
e6 {[%clk 0:02:54.1]} 7. c3 {[%clk 0:02:59.7]} 7... c4 {[%clk 0:02:53.6]} 8. b3
{[%clk 0:02:59.3]} 8... b5 {[%clk 0:02:53]} 9. a4 {[%clk 0:02:59.2]} 9... cxb3
{[%clk 0:02:52]} 10. axb5 {[%clk 0:02:58.5]} 10... Qb6 {[%clk 0:02:51.1]} 11.
Qxb3 {[%clk 0:02:58.3]} 11... Nc5 {[%clk 0:02:50.9]} 12. Qb4 {[%clk 0:02:54.5]}
12... Nd3 {[%clk 0:02:48.2]} 13. Qd4 {[%clk 0:02:42.9]} 13... Qxd4 {[%clk
0:02:45.7]} 14. cxd4 {[%clk 0:02:41.6]} 14... Nxe1 {[%clk 0:02:45.7]} 15. Nxe1
{[%clk 0:02:42.4]} 15... Nxe4 {[%clk 0:02:46]} 16. b6 {[%clk 0:02:42.7]} 16...
Rb8 {[%clk 0:02:44.4]} 17. bxa7 {[%clk 0:02:37.6]} 17... Ra8 {[%clk 0:02:44.3]}
18. Na3 {[%clk 0:02:32.2]} 18... Kd7 {[%clk 0:02:42.9]} 19. Nb5 {[%clk
0:02:32.3]} 19... Be7 {[%clk 0:02:42.9]} 20. f3 {[%clk 0:02:24.6]} 20... Nf6
{[%clk 0:02:41.8]} 21. Nd3 {[%clk 0:02:16.9]} 21... Nd5 {[%clk 0:02:40.5]} 22.
Nb2 {[%clk 0:02:07]} 22... Rhc8 {[%clk 0:02:33]} 23. Na4 {[%clk 0:01:56.3]}
23... Rc6 {[%clk 0:02:30.6]} 24. Nac3 {[%clk 0:01:49.9]} 24... Nxc3 {[%clk
0:02:26.7]} 25. dxc3 {[%clk 0:01:50.8]} 25... Rb6 {[%clk 0:02:26.4]} 26. c4
{[%clk 0:01:50.9]} 26... Rb7 {[%clk 0:02:25.5]} 27. Be3 {[%clk 0:01:47.9]} 27...
d5 {[%clk 0:02:24.7]} 28. Ra5 {[%clk 0:01:26.9]} 28... dxc4 {[%clk 0:02:21.9]}
29. d5 {[%clk 0:01:24.8]} 29... exd5 {[%clk 0:02:21.7]} 30. Nc3 {[%clk 0:01:22]}
30... Bb4 {[%clk 0:02:19.3]} 31. Rxd5+ {[%clk 0:01:18]} 31... Ke6 {[%clk
0:02:19]} 32. Rd4 {[%clk 0:01:08.8]} 32... Bxc3 {[%clk 0:02:16.9]} 33. Rxc4
{[%clk 0:01:09.1]} 33... Ba5 {[%clk 0:02:16.3]} 34. Kf2 {[%clk 0:01:07.2]} 34...
Bb6 {[%clk 0:02:14.3]} 35. Rc6+ {[%clk 0:01:07.4]} 35... Kd5 {[%clk 0:02:11.7]}
36. Rxb6 {[%clk 0:01:06.6]} 36... Raxa7 {[%clk 0:02:11.4]} 37. Rb5+ {[%clk
0:00:40.7]} 37... Rxb5 {[%clk 0:02:09.2]} 38. Bxa7 {[%clk 0:00:40.8]} 38... g5
{[%clk 0:02:06.2]} 39. Be3 {[%clk 0:00:37.5]} 39... h6 {[%clk 0:02:04.2]} 40. h4
{[%clk 0:00:36.7]} 40... Rb2+ {[%clk 0:01:58.9]} 41. Kg3 {[%clk 0:00:35.9]}
41... Re2 {[%clk 0:01:58]} 42. Bc1 {[%clk 0:00:31.3]} 42... gxh4+ {[%clk
0:01:55.7]} 43. Kh3 {[%clk 0:00:28.5]} 43... h5 {[%clk 0:01:53.9]} 44. Bg5
{[%clk 0:00:28.4]} 44... Ke5 {[%clk 0:01:49.5]} 45. Bxh4 {[%clk 0:00:27]} 45...
Kf5 {[%clk 0:01:49.5]} 46. Bg3 {[%clk 0:00:22.3]} 46... Ra2 {[%clk 0:01:47.3]}
47. Bh4 {[%clk 0:00:21.8]} 47... Ra1 {[%clk 0:01:46.5]} 48. Kg3 {[%clk
0:00:18.7]} 48... Rh1 {[%clk 0:01:42.6]} 49. Be7 {[%clk 0:00:18]} 49... f6
{[%clk 0:01:42.3]} 50. Bd6 {[%clk 0:00:17.7]} 50... h4+ {[%clk 0:01:41.6]} 51.
Kf2 {[%clk 0:00:17.1]} 51... Rd1 {[%clk 0:01:40]} 52. Bc7 {[%clk 0:00:16.9]}
52... Rc1 {[%clk 0:01:39.1]} 53. Bb8 {[%clk 0:00:16.7]} 53... Rc2+ {[%clk
0:01:37.8]} 54. Kg1 {[%clk 0:00:15.2]} 54... Kg5 {[%clk 0:01:36.8]} 55. Kh2
{[%clk 0:00:14.7]} 55... f5 {[%clk 0:01:36]} 56. Bd6 {[%clk 0:00:13.8]} 56...
Re2 {[%clk 0:01:34.3]} 57. Bc7 {[%clk 0:00:13.1]} 57... f4 {[%clk 0:01:33.1]}
58. Bd8+ {[%clk 0:00:12.4]} 58... Kh5 {[%clk 0:01:33.1]} 59. Bc7 {[%clk
0:00:12.5]} 59... Kg5 {[%clk 0:01:31.4]} 60. Bd8+ {[%clk 0:00:12.6]} 60... Kh5
{[%clk 0:01:31.3]} 61. Bc7 {[%clk 0:00:12.9]} 61... Kg5 {[%clk 0:01:29.7]}
1/2-1/2

[Event "Early-Titled-Tuesday-Blitz-September-26-2023"]
[Site "Chess.com"]
[Date "2023.09.26"]
[Round "11"]
[White "carokannlover213"]
[Black "remi04"]
[Result "0-1"]
[WhiteElo "2731"]
[BlackElo "2853"]
[TimeControl "180+1"]
[EndTime "10:05:15 PDT"]
[Termination "remi04 won by checkmate"]

1. e4 {[%clk 0:03:00.3]} 1... c5 {[%clk 0:03:00.2]} 2. Nf3 {[%clk 0:03:00.2]}
2... d6 {[%clk 0:03:00.7]} 3. d4 {[%clk 0:03:00.6]} 3... cxd4 {[%clk 0:03:01.6]}
4. Nxd4 {[%clk 0:03:01.4]} 4... Nf6 {[%clk 0:03:02]} 5. Nc3 {[%clk 0:03:01.5]}
5... a6 {[%clk 0:03:02.5]} 6. Be2 {[%clk 0:03:00.8]} 6... e5 {[%clk 0:03:02.3]}
7. Nb3 {[%clk 0:03:00.7]} 7... Be6 {[%clk 0:03:02.3]} 8. Be3 {[%clk 0:02:58.1]}
8... Be7 {[%clk 0:03:02.1]} 9. Nd5 {[%clk 0:02:57.4]} 9... Nxd5 {[%clk
0:02:55.9]} 10. exd5 {[%clk 0:02:57.4]} 10... Bf5 {[%clk 0:02:56.4]} 11. Qd2
{[%clk 0:02:55.4]} 11... Nd7 {[%clk 0:02:53.7]} 12. O-O {[%clk 0:02:55.1]} 12...
O-O {[%clk 0:02:51.2]} 13. Na5 {[%clk 0:02:54.7]} 13... Qc7 {[%clk 0:02:44.5]}
14. c4 {[%clk 0:02:48.5]} 14... Bd8 {[%clk 0:02:40.8]} 15. b4 {[%clk 0:02:47.2]}
15... Rc8 {[%clk 0:02:13.6]} 16. Rac1 {[%clk 0:02:45.2]} 16... Qb8 {[%clk
0:02:13.7]} 17. Nb3 {[%clk 0:02:31.6]} 17... Nf6 {[%clk 0:01:49.3]} 18. c5
{[%clk 0:02:28.3]} 18... Be4 {[%clk 0:01:46.3]} 19. Bc4 {[%clk 0:02:21.3]} 19...
b5 {[%clk 0:01:35.2]} 20. cxb6 {[%clk 0:02:20.9]} 20... Bxb6 {[%clk 0:01:35.5]}
21. Bxa6 {[%clk 0:02:06.3]} 21... Rxc1 {[%clk 0:01:34.6]} 22. Rxc1 {[%clk
0:02:02.2]} 22... Nxd5 {[%clk 0:01:27]} 23. a3 {[%clk 0:01:39.2]} 23... Nxe3
{[%clk 0:01:25.7]} 24. fxe3 {[%clk 0:01:29.5]} 24... Qa7 {[%clk 0:01:25.6]} 25.
Qe2 {[%clk 0:01:17.2]} 25... Bxe3+ {[%clk 0:01:25.3]} 26. Kh1 {[%clk 0:01:17.6]}
26... Bxc1 {[%clk 0:01:25.1]} 27. Nxc1 {[%clk 0:01:18.1]} 27... f5 {[%clk
0:01:20.4]} 28. Nb3 {[%clk 0:01:12.1]} 28... Kh8 {[%clk 0:01:12.8]} 29. a4
{[%clk 0:01:00.8]} 29... Bd5 {[%clk 0:01:10.8]} 30. Nd2 {[%clk 0:00:49.4]} 30...
f4 {[%clk 0:01:08.3]} 31. a5 {[%clk 0:00:47]} 31... Qd4 {[%clk 0:01:04.9]} 32.
b5 {[%clk 0:00:34.6]} 32... Qa1+ {[%clk 0:01:00.8]} 33. Qf1 {[%clk 0:00:34.6]}
33... Qxa5 {[%clk 0:00:59.3]} 34. Nf3 {[%clk 0:00:30.9]} 34... e4 {[%clk
0:00:58.6]} 35. Ng5 {[%clk 0:00:27.2]} 35... f3 {[%clk 0:00:53.6]} 36. Qd1
{[%clk 0:00:20.8]} 36... f2 {[%clk 0:00:48.5]} 37. Qf1 {[%clk 0:00:13.5]} 37...
Bc4 {[%clk 0:00:47.1]} 38. b6 {[%clk 0:00:09.7]} 38... Qxa6 {[%clk 0:00:44.8]}
39. Nf7+ {[%clk 0:00:10.6]} 39... Rxf7 {[%clk 0:00:44]} 40. h4 {[%clk
0:00:11.1]} 40... Bxf1 {[%clk 0:00:43.6]} 41. g4 {[%clk 0:00:12]} 41... Qe2
{[%clk 0:00:42.6]} 42. h5 {[%clk 0:00:10.9]} 42... Qf3+ {[%clk 0:00:42.7]} 43.
Kh2 {[%clk 0:00:10.9]} 43... Qg2# {[%clk 0:00:43.4]} 0-1

[Event "Early-Titled-Tuesday-Blitz-September-26-2023"]
[Site "Chess.com"]
[Date "2023.09.26"]
[Round "11"]
[White "AndrewB92"]
[Black "pinguino120"]
[Result "1-0"]
[WhiteElo "2358"]
[BlackElo "2216"]
[TimeControl "180+1"]
[EndTime "10:05:15 PDT"]
[Termination "AndrewB92 won by resignation"]

1. d4 {[%clk 0:02:55]} 1... d5 {[%clk 0:02:59]} 2. c4 {[%clk 0:02:54.3]} 2... e6
{[%clk 0:02:58.4]} 3. Nc3 {[%clk 0:02:54.6]} 3... c6 {[%clk 0:02:58.7]} 4. Nf3
{[%clk 0:02:54.6]} 4... Nf6 {[%clk 0:02:57.7]} 5. Bg5 {[%clk 0:02:54.5]} 5... h6
{[%clk 0:02:51.5]} 6. Bh4 {[%clk 0:02:54.1]} 6... dxc4 {[%clk 0:02:47.9]} 7. e4
{[%clk 0:02:53.5]} 7... g5 {[%clk 0:02:47.9]} 8. Bg3 {[%clk 0:02:52.7]} 8... b5
{[%clk 0:02:48.5]} 9. h4 {[%clk 0:02:48.7]} 9... g4 {[%clk 0:02:46]} 10. Ne5
{[%clk 0:02:48.2]} 10... Nbd7 {[%clk 0:02:43.2]} 11. Be2 {[%clk 0:02:46.2]}
11... Bb7 {[%clk 0:02:42.3]} 12. Qc2 {[%clk 0:02:44.2]} 12... Bg7 {[%clk
0:02:18]} 13. Rd1 {[%clk 0:02:41.7]} 13... Qb6 {[%clk 0:02:13.8]} 14. O-O {[%clk
0:02:36.9]} 14... Nxe5 {[%clk 0:02:07.4]} 15. Bxe5 {[%clk 0:02:34.3]} 15...
O-O-O {[%clk 0:02:00.7]} 16. b3 {[%clk 0:02:01.4]} 16... cxb3 {[%clk 0:01:56.3]}
17. axb3 {[%clk 0:01:59.6]} 17... a6 {[%clk 0:01:33.4]} 18. Qc1 {[%clk
0:01:08.8]} 18... Rhg8 {[%clk 0:01:19.4]} 19. Qf4 {[%clk 0:01:01.8]} 19... Nh5
{[%clk 0:01:17.9]} 20. Qxf7 {[%clk 0:00:57.7]} 20... Bxe5 {[%clk 0:01:08.5]} 21.
Qxe6+ {[%clk 0:00:55.8]} 21... Kb8 {[%clk 0:00:56.7]} 22. Qxe5+ {[%clk 0:00:56]}
22... Ka8 {[%clk 0:00:57.2]} 23. Qxh5 {[%clk 0:00:55.9]} 23... Rxd4 {[%clk
0:00:57.3]} 24. Qxh6 {[%clk 0:00:40.7]} 24... g3 {[%clk 0:00:55.1]} 25. Qe3
{[%clk 0:00:37.1]} 25... gxf2+ {[%clk 0:00:50.8]} 26. Qxf2 {[%clk 0:00:30.9]}
26... c5 {[%clk 0:00:43.5]} 27. Nd5 {[%clk 0:00:25]} 27... Bxd5 {[%clk
0:00:41.2]} 28. exd5 {[%clk 0:00:22]} 28... Rb4 {[%clk 0:00:21.5]} 29. d6 {[%clk
0:00:20.3]} 29... Kb8 {[%clk 0:00:20.5]} 30. d7 {[%clk 0:00:19.7]} 30... Rd8
{[%clk 0:00:19.1]} 31. Qf6 {[%clk 0:00:17.1]} 31... Rd4 {[%clk 0:00:18.1]} 32.
Qxb6+ {[%clk 0:00:15.8]} 1-0

[Event "Early-Titled-Tuesday-Blitz-September-26-2023"]
[Site "Chess.com"]
[Date "2023.09.26"]
[Round "11"]
[White "WPWPWP-2015"]
[Black "mapleaff"]
[Result "0-1"]
[WhiteElo "2496"]
[BlackElo "2365"]
[TimeControl "180+1"]
[EndTime "10:05:17 PDT"]
[Termination "mapleaff won by resignation"]

1. e4 {[%clk 0:03:00.9]} 1... c5 {[%clk 0:02:58.2]} 2. Nf3 {[%clk 0:03:00.4]}
2... Nf6 {[%clk 0:02:57.7]} 3. Nc3 {[%clk 0:02:59.4]} 3... d5 {[%clk 0:02:55.9]}
4. e5 {[%clk 0:02:59.3]} 4... Nfd7 {[%clk 0:02:51.1]} 5. d4 {[%clk 0:02:40.4]}
5... Nc6 {[%clk 0:02:47.2]} 6. Nxd5 {[%clk 0:02:32.1]} 6... cxd4 {[%clk
0:02:43.6]} 7. e6 {[%clk 0:02:30.7]} 7... fxe6 {[%clk 0:02:40.3]} 8. Nf4 {[%clk
0:01:59.8]} 8... Nf6 {[%clk 0:02:39.4]} 9. Bc4 {[%clk 0:01:56.1]} 9... e5 {[%clk
0:02:33.5]} 10. Ne6 {[%clk 0:01:55.1]} 10... Qd6 {[%clk 0:02:21.3]} 11. O-O
{[%clk 0:01:00.7]} 11... Bxe6 {[%clk 0:02:18.7]} 12. Bb5 {[%clk 0:01:01.1]}
12... Bd5 {[%clk 0:02:13.2]} 13. Nd2 {[%clk 0:00:57.2]} 13... O-O-O {[%clk
0:02:11]} 14. b4 {[%clk 0:00:51.7]} 14... e4 {[%clk 0:02:02.5]} 15. Re1 {[%clk
0:00:50.6]} 15... h5 {[%clk 0:01:52.2]} 16. Bf1 {[%clk 0:00:49.3]} 16... Ng4
{[%clk 0:01:49]} 17. g3 {[%clk 0:00:49]} 17... e3 {[%clk 0:01:39.6]} 18. fxe3
{[%clk 0:00:38.5]} 18... Nxe3 {[%clk 0:01:24]} 19. Qe2 {[%clk 0:00:32.3]} 19...
Nxc2 {[%clk 0:01:11.4]} 20. b5 {[%clk 0:00:31.5]} 20... Na5 {[%clk 0:01:02.1]}
21. Bb2 {[%clk 0:00:29]} 21... Nxe1 {[%clk 0:00:57.6]} 22. Rxe1 {[%clk
0:00:27.2]} 22... e5 {[%clk 0:00:53.1]} 23. b6 {[%clk 0:00:23.2]} 23... axb6
{[%clk 0:00:50.2]} 24. Ne4 {[%clk 0:00:18.3]} 24... Bxe4 {[%clk 0:00:40.6]} 25.
Qxe4 {[%clk 0:00:17.7]} 25... Qd5 {[%clk 0:00:39.1]} 26. Qf5+ {[%clk 0:00:17.2]}
26... Qd7 {[%clk 0:00:36.2]} 27. Qxe5 {[%clk 0:00:16.6]} 27... Bd6 {[%clk
0:00:35.2]} 28. Qg5 {[%clk 0:00:11.3]} 28... Bc5 {[%clk 0:00:32.7]} 29. Bg2
{[%clk 0:00:08.5]} 29... d3+ {[%clk 0:00:31.3]} 30. Kh1 {[%clk 0:00:04.8]} 30...
d2 {[%clk 0:00:31.6]} 31. Rd1 {[%clk 0:00:05.1]} 31... Qg4 {[%clk 0:00:29.9]}
32. Qxg4+ {[%clk 0:00:03.3]} 32... hxg4 {[%clk 0:00:30.8]} 33. Rxd2 {[%clk
0:00:03.7]} 33... Rxd2 {[%clk 0:00:30.6]} 0-1

[Event "Early-Titled-Tuesday-Blitz-September-26-2023"]
[Site "Chess.com"]
[Date "2023.09.26"]
[Round "11"]
[White "djokovic74"]
[Black "Rap_woyska"]
[Result "1-0"]
[WhiteElo "2680"]
[BlackElo "2526"]
[TimeControl "180+1"]
[EndTime "10:05:21 PDT"]
[Termination "djokovic74 won by resignation"]

1. e4 {[%clk 0:03:00.9]} 1... e6 {[%clk 0:01:42.5]} 2. d4 {[%clk 0:03:00.2]}
2... d5 {[%clk 0:01:43.1]} 3. Nd2 {[%clk 0:03:00.4]} 3... Be7 {[%clk 0:01:43.6]}
4. e5 {[%clk 0:03:00.2]} 4... c5 {[%clk 0:01:43.7]} 5. c3 {[%clk 0:03:00.6]}
5... Qb6 {[%clk 0:01:43.9]} 6. Ngf3 {[%clk 0:03:00.8]} 6... Nc6 {[%clk
0:01:43.8]} 7. Nb3 {[%clk 0:02:54.2]} 7... cxd4 {[%clk 0:01:35.4]} 8. cxd4
{[%clk 0:02:53.5]} 8... Bb4+ {[%clk 0:01:35.6]} 9. Bd2 {[%clk 0:02:53.8]} 9...
Nge7 {[%clk 0:01:36.4]} 10. Bd3 {[%clk 0:02:51.3]} 10... a5 {[%clk 0:01:20]} 11.
O-O {[%clk 0:02:48.5]} 11... Bxd2 {[%clk 0:01:10.6]} 12. Qxd2 {[%clk 0:02:47.2]}
12... a4 {[%clk 0:01:10.9]} 13. Nc1 {[%clk 0:02:44.7]} 13... Bd7 {[%clk
0:01:05.3]} 14. Ne2 {[%clk 0:02:44.6]} 14... Qb4 {[%clk 0:00:50.4]} 15. Qg5
{[%clk 0:02:38.5]} 15... Ng6 {[%clk 0:00:50.4]} 16. a3 {[%clk 0:02:35.3]} 16...
Qb3 {[%clk 0:00:47.6]} 17. Qe3 {[%clk 0:02:33.6]} 17... Na5 {[%clk 0:00:40.9]}
18. h4 {[%clk 0:02:33.1]} 18... Nc4 {[%clk 0:00:40.5]} 19. Bxc4 {[%clk
0:02:33.5]} 19... Qxe3 {[%clk 0:00:36.7]} 20. fxe3 {[%clk 0:02:34]} 20... dxc4
{[%clk 0:00:37.6]} 21. h5 {[%clk 0:02:33.9]} 21... Ne7 {[%clk 0:00:37.7]} 22.
Nc3 {[%clk 0:02:34.3]} 22... Nd5 {[%clk 0:00:29.2]} 23. Ne4 {[%clk 0:02:26.3]}
23... Ke7 {[%clk 0:00:25.2]} 24. Rae1 {[%clk 0:02:21.9]} 24... Bc6 {[%clk
0:00:24.1]} 25. Nd6 {[%clk 0:02:18.9]} 25... f6 {[%clk 0:00:24.7]} 26. Nxc4
{[%clk 0:01:55.9]} 26... Bb5 {[%clk 0:00:24.8]} 27. Nfd2 {[%clk 0:01:56.2]}
27... Rac8 {[%clk 0:00:20.9]} 28. exf6+ {[%clk 0:01:53.9]} 28... gxf6 {[%clk
0:00:21.2]} 29. Rc1 {[%clk 0:01:54.2]} 29... Rc7 {[%clk 0:00:20.4]} 30. e4
{[%clk 0:01:51.2]} 30... Rhc8 {[%clk 0:00:14.8]} 31. exd5 {[%clk 0:01:46.1]}
31... Bxc4 {[%clk 0:00:10.8]} 32. Nxc4 {[%clk 0:01:46.4]} 32... Rxc4 {[%clk
0:00:11.7]} 33. Rxc4 {[%clk 0:01:46]} 33... Rxc4 {[%clk 0:00:12.6]} 34. Re1
{[%clk 0:01:46.6]} 34... Rxd4 {[%clk 0:00:11.4]} 35. Rxe6+ {[%clk 0:01:46.8]}
35... Kf7 {[%clk 0:00:11.4]} 36. Rb6 {[%clk 0:01:44.3]} 36... Rxd5 {[%clk
0:00:12.2]} 37. Rxb7+ {[%clk 0:01:44.7]} 37... Ke6 {[%clk 0:00:09]} 38. Rxh7
{[%clk 0:01:40.6]} 38... Rb5 {[%clk 0:00:09.8]} 39. Ra7 {[%clk 0:01:41.3]} 39...
Rxb2 {[%clk 0:00:07.8]} 40. Rxa4 {[%clk 0:01:42]} 40... Rb8 {[%clk 0:00:02.5]}
41. Rh4 {[%clk 0:01:41.8]} 41... Kf5 {[%clk 0:00:02.3]} 42. h6 {[%clk
0:01:40.7]} 42... Kg5 {[%clk 0:00:03]} 43. Rh3 {[%clk 0:01:41.3]} 43... Rh8
{[%clk 0:00:03.1]} 44. Kf2 {[%clk 0:01:41.4]} 44... Kg6 {[%clk 0:00:03.5]} 45.
Ke2 {[%clk 0:01:41.2]} 45... Kh7 {[%clk 0:00:03.4]} 46. a4 {[%clk 0:01:37.5]}
46... Ra8 {[%clk 0:00:03.9]} 47. Rh4 {[%clk 0:01:37.5]} 47... f5 {[%clk
0:00:04.1]} 48. Kd3 {[%clk 0:01:36.1]} 48... Ra5 {[%clk 0:00:04.7]} 49. Kc3
{[%clk 0:01:35]} 49... f4 {[%clk 0:00:04.6]} 50. Rxf4 {[%clk 0:01:33.3]} 50...
Kxh6 {[%clk 0:00:05.5]} 51. Kb4 {[%clk 0:01:33.7]} 1-0

[Event "Early-Titled-Tuesday-Blitz-September-26-2023"]
[Site "Chess.com"]
[Date "2023.09.26"]
[Round "11"]
[White "Eloist"]
[Black "AttilaTurzo"]
[Result "1-0"]
[WhiteElo "2496"]
[BlackElo "2462"]
[TimeControl "180+1"]
[EndTime "10:05:22 PDT"]
[Termination "Eloist won by resignation"]

1. e4 {[%clk 0:03:00.9]} 1... c5 {[%clk 0:02:44.9]} 2. Nf3 {[%clk 0:03:00.8]}
2... Nc6 {[%clk 0:02:44.2]} 3. Bb5 {[%clk 0:03:00.4]} 3... g6 {[%clk 0:02:44]}
4. Bxc6 {[%clk 0:03:00.4]} 4... dxc6 {[%clk 0:02:44.9]} 5. d3 {[%clk 0:02:59.8]}
5... Bg7 {[%clk 0:02:45.3]} 6. O-O {[%clk 0:02:59.9]} 6... e5 {[%clk 0:02:45.7]}
7. Be3 {[%clk 0:02:53.3]} 7... Qe7 {[%clk 0:02:46.1]} 8. a4 {[%clk 0:02:46.2]}
8... b6 {[%clk 0:02:42]} 9. a5 {[%clk 0:02:38]} 9... Rb8 {[%clk 0:02:41.4]} 10.
axb6 {[%clk 0:02:36.9]} 10... axb6 {[%clk 0:02:42.3]} 11. Nbd2 {[%clk
0:02:30.3]} 11... Nf6 {[%clk 0:02:40.7]} 12. Nc4 {[%clk 0:02:23.8]} 12... Nd7
{[%clk 0:02:28.8]} 13. Ra7 {[%clk 0:02:21.6]} 13... O-O {[%clk 0:02:23.6]} 14.
Qd2 {[%clk 0:02:17.9]} 14... f6 {[%clk 0:02:17.2]} 15. Rfa1 {[%clk 0:02:14.7]}
15... Bb7 {[%clk 0:02:08.3]} 16. b4 {[%clk 0:02:11.6]} 16... Ra8 {[%clk
0:01:52.9]} 17. bxc5 {[%clk 0:02:08.4]} 17... bxc5 {[%clk 0:01:50.4]} 18. Rxa8
{[%clk 0:02:05.1]} 18... Rxa8 {[%clk 0:01:43.6]} 19. Rxa8+ {[%clk 0:02:04.8]}
19... Bxa8 {[%clk 0:01:44.5]} 20. Qa5 {[%clk 0:02:04.6]} 20... Qf8 {[%clk
0:01:22.5]} 21. Qc7 {[%clk 0:01:51.7]} 21... Qb8 {[%clk 0:01:07]} 22. Qxb8+
{[%clk 0:01:43.3]} 22... Nxb8 {[%clk 0:01:07.9]} 23. Bxc5 {[%clk 0:01:43.2]}
23... Nd7 {[%clk 0:01:07.2]} 24. Bd6 {[%clk 0:01:27.1]} 24... c5 {[%clk
0:00:55.5]} 25. Nfd2 {[%clk 0:01:24]} 25... Bf8 {[%clk 0:00:52.6]} 26. Bxf8
{[%clk 0:01:09.6]} 26... Kxf8 {[%clk 0:00:53.5]} 27. g3 {[%clk 0:01:02.2]} 27...
Ke7 {[%clk 0:00:52.9]} 28. f4 {[%clk 0:01:02]} 28... exf4 {[%clk 0:00:47.3]} 29.
gxf4 {[%clk 0:01:02.9]} 29... Bc6 {[%clk 0:00:47.2]} 30. Kf2 {[%clk 0:01:01.6]}
30... Ba4 {[%clk 0:00:46.5]} 31. Nb3 {[%clk 0:00:54.7]} 31... Bb5 {[%clk
0:00:37.5]} 32. Ne3 {[%clk 0:00:52.4]} 32... Bc6 {[%clk 0:00:35.1]} 33. c4
{[%clk 0:00:50.8]} 33... Kd6 {[%clk 0:00:34.3]} 34. Nd5 {[%clk 0:00:46.4]} 34...
f5 {[%clk 0:00:24.7]} 35. Ke3 {[%clk 0:00:46.1]} 35... fxe4 {[%clk 0:00:24.5]}
36. dxe4 {[%clk 0:00:45.8]} 36... Ba4 {[%clk 0:00:20.4]} 37. e5+ {[%clk
0:00:41.9]} 37... Ke6 {[%clk 0:00:19.2]} 38. Nd2 {[%clk 0:00:39.4]} 38... Kf5
{[%clk 0:00:17.4]} 39. h3 {[%clk 0:00:33.9]} 39... Bc2 {[%clk 0:00:13.5]} 40.
Kf3 {[%clk 0:00:31.4]} 40... Nf8 {[%clk 0:00:12.7]} 41. Ne3+ {[%clk 0:00:31.2]}
41... Ke6 {[%clk 0:00:12.1]} 42. Nxc2 {[%clk 0:00:31.2]} 1-0